bitfinex/quotes_BTCUSD_20241111
["timestamp","ask_amount","ask_price","bid_price","bid_amount"]
[1731343665465,0.00315724,84250.0,84242.0,0.01237346]
[1731343665713,0.00315724,84250.0,84247.0,0.1]
[1731343666883,0.00315724,84250.0,84249.0,0.28348644]
[1731343667190,0.17848644,84266.0,84256.0,0.005]
[1731343667361,0.17848644,84266.0,84256.0,0.12494075]
[1731343667563,0.17848644,84266.0,84256.0,0.22494075]
[1731343668786,0.001673,84268.0,84256.0,0.22494075]
[1731343668992,0.001673,84268.0,84256.0,0.8063138]
[1731343669182,0.001673,84268.0,84256.0,3.16044075]
[1731343670236,0.12347285,84293.0,84282.0,0.005]
[1731343670237,0.17848644,84283.0,84282.0,0.005]
[1731343670438,0.17106538,84283.0,84282.0,0.005]
[1731343670644,0.0785,84293.0,84282.0,0.005]
[1731343672000,0.0463,84300.0,84282.0,0.005]
[1731343672234,0.0463,84300.0,84284.0,0.1]
[1731343672428,0.0463,84300.0,84282.0,0.005]
[1731343676244,0.076573,84302.0,84282.0,0.005]
[1731343676355,0.05797128,84289.0,84282.0,0.005]
[1731343678530,0.05797128,84289.0,84288.0,0.17848644]
[1731343678717,0.05797128,84289.0,84288.0,0.22731322]
[1731343679296,0.05797128,84289.0,84288.0,0.22494075]
[1731343680933,0.05797128,84289.0,84288.0,0.005]
[1731343681575,0.05797128,84289.0,84288.0,0.22494075]
[1731343681771,0.05797128,84289.0,84288.0,0.1]
[1731343682612,0.05797128,84289.0,84283.0,0.105]
[1731343682858,0.05797128,84289.0,84285.0,0.005]
[1731343683071,0.05797128,84289.0,84283.0,0.105]
[1731343683294,0.05797128,84289.0,84288.0,0.005]
[1731343683729,0.05481731,84289.0,84288.0,0.005]
[1731343683929,0.05651331,84289.0,84288.0,0.005]
[1731343684128,0.05651331,84289.0,84286.0,0.1]
[1731343684369,0.05651331,84289.0,84283.0,0.1]
[1731343684494,0.05651331,84289.0,84204.0,0.36806197]
[1731343684495,0.05651331,84289.0,84279.0,0.005]
[1731343684704,0.05651331,84289.0,84286.0,0.1]
[1731343685315,0.05651331,84289.0,84286.0,0.14057576]
[1731343685742,0.05651331,84289.0,84287.0,0.00737243]
[1731343685967,0.05651331,84289.0,84287.0,0.0428614]
[1731343686337,0.05651331,84289.0,84283.0,0.105]
[1731343686986,0.05651331,84289.0,84283.0,0.14826319]
[1731343687411,0.05651331,84289.0,84283.0,0.14326319]
[1731343687848,0.05651331,84289.0,84276.0,0.1]
[1731343688054,0.0799,84287.0,84265.0,0.005]
[1731343688256,0.0799,84287.0,84276.0,0.17848644]
[1731343688411,0.0799,84287.0,84264.0,0.57965121]
[1731343688822,0.0799,84287.0,84248.0,0.005]
[1731343688823,0.023,84280.0,84248.0,0.005]
[1731343689036,0.0475,84281.0,84274.0,0.17848644]
[1731343689313,0.0475,84281.0,84257.0,0.18348644]
[1731343689314,0.0475,84281.0,84259.0,0.005]
[1731343689525,0.0475,84281.0,84268.0,0.17848644]
[1731343689744,0.0475,84281.0,84259.0,0.005]
[1731343689745,0.0475,84281.0,84260.0,0.0189307]
[1731343689917,0.0475,84281.0,84266.0,0.17848644]
[1731343690116,0.0475,84281.0,84260.0,0.0378614]
[1731343690527,0.0475,84281.0,84267.0,0.1]
[1731343690738,0.0475,84281.0,84260.0,0.0378614]
[1731343690950,0.11994075,84280.0,84267.0,0.1]
[1731343691153,0.11994075,84280.0,84270.0,0.1]
[1731343691328,0.11994075,84280.0,84268.0,0.00408368]
[1731343691532,0.11994075,84280.0,84271.0,0.00408368]
[1731343691746,0.11994075,84280.0,84271.0,0.00645673]
[1731343692092,0.11994075,84280.0,84271.0,0.00408368]
[1731343692267,0.0475,84281.0,84272.0,0.00237305]
[1731343692479,0.0475,84281.0,84273.0,0.00204184]
[1731343692741,0.0475,84281.0,84273.0,0.00408368]
[1731343692941,0.0475,84281.0,84264.0,0.1]
[1731343693153,0.0475,84281.0,84242.0,1.17265121]
[1731343693154,0.0475,84281.0,84267.0,0.1]
[1731343693363,0.023,84275.0,84267.0,0.1]
[1731343693588,0.0475,84281.0,84267.0,0.1]
[1731343693589,0.023,84273.0,84267.0,0.1]
[1731343693754,0.11994075,84272.0,84267.0,0.1]
[1731343693960,0.11994075,84272.0,84268.0,0.17848644]
[1731343694164,0.11994075,84272.0,84267.0,0.1]
[1731343694370,0.005,84245.0,84199.0,0.005]
[1731343694605,0.005,84230.0,84199.0,0.2955]
[1731343694832,0.023,84226.0,84200.0,0.00237502]
[1731343695037,0.00237334,84225.0,84193.0,0.00237487]
[1731343695244,0.025,84220.0,84182.0,0.005]
[1731343695449,0.005,84227.0,84179.0,1.48978874]
[1731343695450,0.023,84212.0,84179.0,1.48978874]
[1731343695727,0.002,84213.0,84179.0,1.48978874]
[1731343695728,0.005,84207.0,84179.0,1.12229949]
[1731343695944,0.002,84213.0,84179.0,0.04429949]
[1731343695945,0.07287334,84206.0,84179.0,0.04429949]
[1731343696155,0.07287334,84206.0,84171.0,0.005848]
[1731343696156,0.07287334,84206.0,84178.0,0.41178874]
[1731343696376,0.005,84224.0,84190.0,0.41178874]
[1731343696588,0.0498,84228.0,84190.0,0.41178874]
[1731343696589,0.02537334,84223.0,84200.0,0.00028786]
[1731343697186,0.02537334,84223.0,84138.0,0.05939694]
[1731343697187,0.002,84218.0,84191.0,0.00028786]
[1731343697388,0.14531409,84217.0,84202.0,0.71200138]
[1731343697596,0.14531409,84217.0,84193.0,0.71200138]
[1731343697597,0.023,84213.0,84193.0,0.71200138]
[1731343697800,0.023,84211.0,84202.0,0.71200138]
[1731343697996,0.14294075,84211.0,84204.0,0.71200138]
[1731343698200,0.14294075,84211.0,84193.0,0.71200138]
[1731343698407,0.0286,84231.0,84185.0,0.71200138]
[1731343698408,0.00471214,84207.0,84185.0,0.71200138]
[1731343698636,0.71200138,84186.0,84155.0,1.2405]
[1731343698759,0.005,84130.0,84124.0,0.00028786]
[1731343698962,0.002,84175.0,84127.0,0.00028786]
[1731343698963,0.005,84143.0,84127.0,0.00028786]
[1731343699177,0.005,84154.0,84134.0,0.00028786]
[1731343699400,0.005,84149.0,84134.0,0.00028786]
[1731343699620,0.005,84143.0,84125.0,0.00028786]
[1731343699835,0.005,84143.0,84141.0,0.71200138]
[1731343700041,0.005,84143.0,84134.0,0.00028786]
[1731343700249,0.005,84143.0,84136.0,0.71200138]
[1731343700458,0.005,84143.0,84138.0,0.71200138]
[1731343700911,0.005,84143.0,84139.0,0.71200138]
[1731343701327,0.005,84143.0,84126.0,0.00028786]
[1731343701547,0.005,84132.0,84125.0,0.71200138]
[1731343702037,0.005,84126.0,84116.0,0.71200138]
[1731343702254,0.005,84122.0,84116.0,0.71200138]
[1731343702471,0.005,84118.0,84116.0,0.71200138]
[1731343702675,0.005,84118.0,84115.0,0.001344]
[1731343702676,0.005,84118.0,84117.0,0.71200138]
[1731343702910,0.005,84121.0,84117.0,0.71200138]
[1731343703578,0.13351529,84211.0,84118.0,0.10266533]
[1731343703579,0.005,84129.0,84118.0,0.10266533]
[1731343703803,0.005,84129.0,84118.0,0.2809746]
[1731343704221,0.005,84132.0,84121.0,0.00028786]
[1731343704644,0.005,84131.0,84121.0,0.00028786]
[1731343705304,0.005,84132.0,84121.0,0.00266503]
[1731343705800,0.005,84144.0,84128.0,0.10028786]
[1731343706214,0.005,84144.0,84130.0,0.1]
[1731343706426,0.005,84143.0,84130.0,0.10028786]
[1731343706642,0.005,84143.0,84130.0,0.1]
[1731343707066,0.023,84152.0,84139.0,0.10028786]
[1731343707281,0.005,84159.0,84140.0,0.00237667]
[1731343707493,0.005,84153.0,84141.0,0.10028786]
[1731343707906,0.04604891,84169.0,84150.0,0.1]
[1731343708135,0.005,84163.0,84151.0,0.00237648]
[1731343708591,0.00471214,84180.0,84159.0,0.1]
[1731343708831,0.11994075,84176.0,84168.0,0.17830927]
[1731343709054,0.00471214,84184.0,84160.0,0.002664]
[1731343709055,0.005,84167.0,84160.0,0.00028786]
[1731343709282,0.005,84167.0,84163.0,0.1]
[1731343709741,0.005,84164.0,84163.0,0.1]
[1731343710209,0.12731409,84164.0,84163.0,0.1]
[1731343710439,0.12731409,84164.0,84150.0,0.1]
[1731343710440,0.023,84163.0,84150.0,0.1]
[1731343710654,0.14531409,84162.0,84161.0,0.1]
[1731343710899,0.15031409,84162.0,84161.0,0.1]
[1731343711537,0.14794075,84162.0,84161.0,0.1]
[1731343711755,0.023,84161.0,84150.0,0.1]
[1731343711973,0.00237334,84160.0,84159.0,0.17830927]
[1731343712303,0.03037334,84160.0,84159.0,0.1]
[1731343713140,0.005,84141.0,84130.0,0.20260788]
[1731343713370,0.005,84141.0,84130.0,0.15888786]
[1731343713589,0.005,84141.0,84130.0,0.1586]
[1731343713811,0.005,84141.0,84130.0,0.15888786]
[1731343714256,0.005,84141.0,84139.0,0.1]
[1731343714962,0.005,84141.0,84140.0,0.17830927]
[1731343715189,0.005,84142.0,84141.0,0.1]
[1731343715412,0.005,84146.0,84141.0,0.1023768]
[1731343715640,0.005,84146.0,84141.0,0.1]
[1731343715855,0.005,84146.0,84143.0,0.1]
[1731343716486,0.028,84144.0,84143.0,0.1]
[1731343716688,0.14794075,84144.0,84143.0,0.1]
[1731343717171,0.005,84138.0,84135.0,0.00028786]
[1731343717400,0.005,84145.0,84143.0,0.27830927]
[1731343717602,0.005,84145.0,84144.0,0.1]
[1731343718649,0.005,84145.0,84135.0,0.00028786]
[1731343718880,0.03771214,84131.0,84130.0,0.1586]
[1731343719080,0.15965289,84131.0,84130.0,0.1586]
[1731343720830,0.005,84119.0,84100.0,0.17830927]
[1731343721050,0.15265289,84119.0,84100.0,0.17830927]
[1731343721864,0.01,84116.0,84100.0,0.17830927]
[1731343722116,0.15531409,84116.0,84100.0,0.17830927]
[1731343722335,0.15531409,84116.0,84101.0,0.1]
[1731343723659,0.15031409,84116.0,84101.0,0.1]
[1731343724317,0.12494075,84116.0,84102.0,0.00237801]
[1731343724524,0.12494075,84116.0,84102.0,0.00028786]
[1731343725665,0.14794075,84116.0,84102.0,0.00028786]
[1731343726294,0.14794075,84116.0,84101.0,0.1]
[1731343726522,0.15294075,84116.0,84101.0,0.1]
[1731343727830,0.15531409,84116.0,84101.0,0.1]
[1731343729027,0.15031409,84116.0,84101.0,0.1]
[1731343729438,0.12494075,84116.0,84102.0,0.00266578]
[1731343729672,0.00471214,84127.0,84102.0,0.00266578]
[1731343729673,0.005,84117.0,84102.0,0.00266578]
[1731343729871,0.005,84117.0,84116.0,0.1]
[1731343730119,0.12494075,84117.0,84116.0,0.1]
[1731343731006,0.023,84116.0,84106.0,0.00028786]
[1731343731221,0.14294075,84116.0,84106.0,0.00028786]
[1731343731468,0.14294075,84116.0,84057.0,0.71330492]
[1731343731469,0.00471214,84078.0,84057.0,0.71330492]
[1731343731694,0.00471214,84078.0,84030.0,0.71465092]
[1731343731695,0.028,84069.0,84049.0,0.00028786]
[1731343731906,0.028,84069.0,84068.0,0.15132025]
[1731343732572,0.005,84074.0,84068.0,0.15132025]
[1731343732772,0.005,84074.0,84069.0,0.00883796]
[1731343732985,0.005,84071.0,84070.0,0.00883796]
[1731343734138,0.028,84071.0,84070.0,0.00883796]
[1731343734284,0.023,84070.0,84069.0,0.00883796]
[1731343734477,0.03097389,84070.0,84069.0,0.00883796]
[1731343735065,0.005,84070.0,84069.0,0.00883796]
[1731343735476,0.005,84070.0,84069.0,0.10883796]
[1731343736102,0.005,84070.0,84069.0,0.07139796]
[1731343736879,0.14794075,84070.0,84069.0,0.07139796]
[1731343738311,0.005,84070.0,84069.0,0.07139796]
[1731343739205,0.12494075,84070.0,84069.0,0.07139796]
[1731343739424,0.03971214,84069.0,84068.0,0.14248229]
[1731343739628,0.24102715,84069.0,84068.0,0.14248229]
[1731343740296,0.028,84041.0,84040.0,0.0002289]
[1731343740499,0.03097511,84041.0,84040.0,0.0002289]
[1731343740702,0.023,84040.0,84030.0,0.001346]
[1731343741051,0.005,84036.0,84035.0,0.15129351]
[1731343741223,0.028,84036.0,84035.0,0.15129351]
[1731343741461,0.00297504,84062.0,84038.0,0.00028786]
[1731343741462,0.005,84044.0,84038.0,0.00028786]
[1731343742127,0.005,84039.0,84038.0,0.00028786]
[1731343742523,0.00471214,84061.0,84035.0,0.04319555]
[1731343742524,0.005,84056.0,84043.0,0.00028786]
[1731343742757,0.00471214,84066.0,84043.0,0.00028786]
[1731343742758,0.005,84055.0,84043.0,0.00266715]
[1731343742942,0.005,84052.0,84043.0,0.00028786]
[1731343743151,0.005,84049.0,84043.0,0.00028786]
[1731343743309,0.005,84046.0,84045.0,0.1]
[1731343743516,0.005,84060.0,84052.0,0.00028786]
[1731343743691,0.002974,84074.0,84073.0,0.00059371]
[1731343743900,0.12291475,84074.0,84073.0,0.00059371]
[1731343744740,0.00297372,84082.0,84073.0,0.00059371]
[1731343744932,0.12291417,84081.0,84075.0,0.1784238]
[1731343745136,0.12291417,84081.0,84076.0,0.1]
[1731343745741,0.12291417,84081.0,84078.0,0.1]
[1731343746511,0.12291417,84081.0,84080.0,0.1]
[1731343746833,0.03271214,84074.0,84073.0,0.00059371]
[1731343747015,0.15562713,84074.0,84073.0,0.00059371]
[1731343747508,0.15762713,84074.0,84073.0,0.00059371]
[1731343748256,0.15562713,84074.0,84073.0,0.00059371]
[1731343748694,0.12291499,84074.0,84073.0,0.00059371]
[1731343749167,0.11994075,84074.0,84073.0,0.0094083]
[1731343750125,0.12494075,84074.0,84073.0,0.0094083]
[1731343750341,0.11994075,84074.0,84073.0,0.0094083]
[1731343751220,0.14294075,84074.0,84073.0,0.0094083]
[1731343751661,0.14591473,84074.0,84073.0,0.0094083]
[1731343751876,0.12291473,84074.0,84073.0,0.0094083]
[1731343752078,0.11994075,84074.0,84073.0,0.00059371]
[1731343753187,0.14294075,84074.0,84073.0,0.00059371]
[1731343753387,0.02597398,84074.0,84073.0,0.00059371]
[1731343753620,0.00471214,84097.0,84075.0,0.00028786]
[1731343753792,0.11994075,84089.0,84075.0,0.00028786]
[1731343753990,0.00177714,84088.0,84074.0,0.1]
[1731343754251,0.11994075,84087.0,84079.0,0.1]
[1731343754418,0.00177714,84086.0,84079.0,0.1]
[1731343754625,0.11994075,84085.0,84079.0,0.1]
[1731343754827,0.00177714,84084.0,84079.0,0.1]
[1731343755033,0.023,84082.0,84079.0,0.1]
[1731343755299,0.12171789,84081.0,84073.0,0.00059371]
[1731343755520,0.12171789,84081.0,84078.0,0.1]
[1731343756153,0.00177714,84080.0,84078.0,0.1]
[1731343756372,0.11994075,84079.0,84078.0,0.1]
[1731343756546,0.11994075,84079.0,84073.0,0.00059371]
[1731343756702,0.00177714,84078.0,84075.0,0.1784238]
[1731343756914,0.11994075,84077.0,84076.0,0.1]
[1731343757891,0.11994075,84077.0,84073.0,0.00059371]
[1731343758146,0.00177714,84076.0,84073.0,0.00059371]
[1731343758363,0.14294075,84075.0,84073.0,0.00059371]
[1731343758573,0.02477714,84074.0,84073.0,0.00059371]
[1731343758783,0.14471789,84074.0,84073.0,0.00059371]
[1731343759099,0.12171789,84074.0,84073.0,0.00059371]
[1731343762865,0.14471789,84074.0,84073.0,0.00059371]
[1731343763195,0.14971789,84074.0,84073.0,0.00059371]
[1731343764115,0.14471789,84074.0,84073.0,0.00059371]
[1731343764352,0.14971789,84074.0,84073.0,0.00059371]
[1731343764933,0.12171789,84074.0,84073.0,0.00059371]
[1731343765920,0.00177714,84074.0,84073.0,0.00059371]
[1731343766125,0.11994075,84074.0,84073.0,0.00059371]
[1731343768015,0.11994075,84074.0,84073.0,0.00144371]
[1731343769388,0.0017,84077.0,84073.0,0.00144371]
[1731343769594,0.11994075,84076.0,84073.0,0.00144371]
[1731343769835,0.0017,84077.0,84076.0,0.1]
[1731343770030,0.12164075,84077.0,84076.0,0.1]
[1731343770861,0.007,84074.0,84073.0,0.00144371]
[1731343771093,0.15643003,84074.0,84073.0,0.00144371]
[1731343772462,0.028,84060.0,84059.0,0.1]
[1731343772679,0.03,84059.0,84058.0,0.1784238]
[1731343772878,0.03,84059.0,84044.0,0.1784238]
[1731343772879,0.00471214,84046.0,84044.0,0.1784238]
[1731343773077,0.12171789,84045.0,84044.0,0.1784238]
[1731343773568,0.11994075,84045.0,84044.0,0.1784238]
[1731343773769,0.11994075,84045.0,84035.0,0.19398101]
[1731343773924,0.11994075,84045.0,84035.0,0.1792738]
[1731343773925,0.00177714,84044.0,84035.0,0.1792738]
[1731343774146,0.11994075,84043.0,84035.0,0.1792738]
[1731343774307,0.14794075,84036.0,84035.0,0.00085]
[1731343774935,0.15171789,84036.0,84035.0,0.00085]
[1731343775332,0.15643003,84036.0,84035.0,0.00085]
[1731343775532,0.19674962,84036.0,84035.0,0.00085]
[1731343776021,0.21587615,84036.0,84035.0,0.00085]
[1731343776211,0.19674962,84036.0,84035.0,0.00085]
[1731343776943,0.19852676,84036.0,84035.0,0.00085]
[1731343777120,0.19203748,84036.0,84035.0,0.00085]
[1731343777373,0.19852676,84036.0,84035.0,0.00085]
[1731343777597,0.12171789,84036.0,84035.0,0.00085]
[1731343777796,0.00648928,84048.0,84035.0,0.01772438]
[1731343778072,0.11994075,84047.0,84035.0,0.00085]
[1731343778285,0.00177714,84046.0,84035.0,0.00085]
[1731343778519,0.11994075,84045.0,84035.0,0.00085]
[1731343778722,0.11994075,84045.0,84041.0,0.1]
[1731343778871,0.00177714,84044.0,84041.0,0.10028786]
[1731343779048,0.11994075,84043.0,84041.0,0.1]
[1731343779248,0.00177714,84042.0,84041.0,0.1]
[1731343779499,0.11994075,84042.0,84041.0,0.1]
[1731343779712,0.11994075,84042.0,84036.0,0.00028786]
[1731343779924,0.12171789,84041.0,84036.0,0.00028786]
[1731343780193,0.028,84036.0,84035.0,0.00085]
[1731343780406,0.14971789,84036.0,84035.0,0.00085]
[1731343781609,0.15171789,84036.0,84035.0,0.00085]
[1731343782019,0.14971789,84036.0,84035.0,0.00085]
[1731343783652,0.14471789,84036.0,84035.0,0.00085]
[1731343784749,0.12171789,84036.0,84035.0,0.00085]
[1731343785070,0.11994075,84036.0,84035.0,0.00085]
[1731343785507,0.00177714,84049.0,84037.0,0.00028786]
[1731343785714,0.00177714,84049.0,84035.0,0.00085]
[1731343785715,0.11994075,84048.0,84045.0,0.00028786]
[1731343785917,0.00177714,84047.0,84045.0,0.00028786]
[1731343786198,0.11994075,84046.0,84045.0,0.00028786]
[1731343786598,0.00177714,84061.0,84045.0,0.00028786]
[1731343786806,0.11994075,84060.0,84053.0,0.00028786]
[1731343787011,0.00177714,84059.0,84053.0,0.00028786]
[1731343787230,0.11994075,84058.0,84053.0,0.00028786]
[1731343787414,0.00177714,84057.0,84053.0,0.00028786]
[1731343787642,0.11994075,84056.0,84053.0,0.00028786]
[1731343788083,0.11994075,84056.0,84051.0,0.0825]
[1731343788084,0.00177714,84055.0,84051.0,0.08278786]
[1731343788278,0.12171789,84055.0,84053.0,0.00028786]
[1731343788469,0.11994075,84054.0,84051.0,0.00028786]
[1731343788629,0.00177714,84053.0,84051.0,0.00028786]
[1731343788835,0.11994075,84052.0,84044.0,0.00028786]
[1731343789029,0.11994075,84052.0,84041.0,0.0765]
[1731343789030,0.00177714,84051.0,84050.0,0.1]
[1731343789279,0.11994075,84051.0,84050.0,0.1]
[1731343790065,0.11994075,84051.0,84049.0,0.00028786]
[1731343790301,0.00677714,84060.0,84047.0,0.00028786]
[1731343790302,0.12171789,84050.0,84047.0,0.00028786]
[1731343790515,0.12171789,84050.0,84044.0,0.00028786]
[1731343790898,0.12171789,84050.0,84049.0,0.27871166]
[1731343791094,0.00177714,84067.0,84053.0,0.00028786]
[1731343791347,0.11994075,84066.0,84056.0,0.00028786]
[1731343791586,0.00177714,84065.0,84056.0,0.00028786]
[1731343791725,0.11994075,84064.0,84056.0,0.00028786]
[1731343791922,0.00177714,84063.0,84056.0,0.00028786]
[1731343792126,0.11994075,84062.0,84056.0,0.00028786]
[1731343792330,0.005,84060.0,84056.0,0.00028786]
[1731343792611,0.12171789,84059.0,84057.0,0.1784238]
[1731343792812,0.12171789,84059.0,84053.0,0.00085]
[1731343793023,0.023,84058.0,84053.0,0.00085]
[1731343793376,0.12171789,84059.0,84053.0,0.00085]
[1731343793377,0.023,84056.0,84053.0,0.00085]
[1731343793532,0.005,84059.0,84053.0,0.00085]
[1731343793533,0.023,84054.0,84053.0,0.00085]
[1731343793903,0.14294075,84054.0,84053.0,0.00085]
[1731343794927,0.11994075,84054.0,84053.0,0.00085]
[1731343799536,0.16193483,84054.0,84053.0,0.00085]
[1731343799718,0.16171197,84054.0,84053.0,0.00085]
[1731343800152,0.16842411,84054.0,84053.0,0.00085]
[1731343800375,0.16842411,84054.0,84020.0,0.00028786]
[1731343800376,0.028,84036.0,84020.0,0.00028786]
[1731343800564,0.02477714,84036.0,84023.0,0.03177582]
[1731343800714,0.00471214,84043.0,84035.0,0.01737382]
[1731343800715,0.02977714,84042.0,84035.0,0.01737382]
[1731343800920,0.02977714,84042.0,84035.0,0.00085]
[1731343801329,0.14794075,84036.0,84035.0,0.00085]
[1731343801831,0.16293483,84036.0,84035.0,0.00085]
[1731343802043,0.14971789,84036.0,84035.0,0.00085]
[1731343802653,0.14431789,84036.0,84035.0,0.00085]
[1731343803067,0.14631789,84036.0,84035.0,0.00085]
[1731343803262,0.14431789,84036.0,84035.0,0.00085]
[1731343803953,0.14254075,84036.0,84035.0,0.00085]
[1731343804286,0.11994075,84036.0,84035.0,0.00085]
[1731343804717,0.11994075,84036.0,84035.0,0.15542352]
[1731343804933,0.04453099,84061.0,84046.0,0.00028786]
[1731343805086,0.1784238,84056.0,84046.0,0.00028786]
[1731343805294,0.12171789,84055.0,84046.0,0.00028786]
[1731343805495,0.12171789,84055.0,84050.0,0.1]
[1731343805824,0.12171789,84055.0,84040.0,0.1784238]
[1731343805825,0.00471214,84048.0,84041.0,0.1784238]
[1731343806041,0.00177714,84047.0,84042.0,0.1]
[1731343807033,0.00471214,84049.0,84042.0,0.1]
[1731343807240,0.11994075,84047.0,84030.0,0.001346]
[1731343807471,0.02477714,84046.0,84037.0,0.1]
[1731343807685,0.023,84044.0,84037.0,0.1]
[1731343807979,0.11994075,84039.0,84037.0,0.1]
[1731343808349,0.11994075,84039.0,84038.0,0.1]
[1731343808917,0.00177714,84052.0,84047.0,0.00028786]
[1731343809144,0.18313594,84069.0,84049.0,0.00028786]
[1731343809145,0.11994075,84051.0,84049.0,0.00028786]
[1731343809328,0.00177714,84050.0,84049.0,0.00028786]
[1731343809558,0.11994075,84050.0,84049.0,0.00028786]
[1731343809764,0.11994075,84050.0,84049.0,0.17548786]
[1731343810259,0.11994075,84050.0,84049.0,0.10028786]
[1731343810980,0.11994075,84050.0,84049.0,0.00028786]
[1731343811619,0.12171789,84050.0,84049.0,0.00028786]
[1731343812159,0.12171789,84050.0,84043.0,0.00028786]
[1731343812372,0.00177714,84050.0,84049.0,0.00028786]
[1731343812548,0.00177714,84051.0,84049.0,0.00028786]
[1731343812909,0.00177714,84051.0,84050.0,0.00028786]
[1731343813330,0.1,84052.0,84050.0,0.00028786]
[1731343813558,0.11994075,84051.0,84050.0,0.00028786]
[1731343814380,0.1,84052.0,84050.0,0.00028786]
[1731343814381,0.1,84052.0,84051.0,0.00028786]
[1731343814602,0.1,84052.0,84051.0,0.23518786]
[1731343814830,0.1801238,84077.0,84051.0,0.23518786]
[1731343814831,0.1784238,84076.0,84072.0,0.00528786]
[1731343815028,0.02913248,84074.0,84073.0,0.12518786]
[1731343815249,0.02913248,84074.0,84073.0,0.22518786]
[1731343815662,0.02913248,84074.0,84073.0,0.23018786]
[1731343815871,0.02913248,84074.0,84073.0,0.24321072]
[1731343816117,0.02913248,84074.0,84073.0,0.23018786]
[1731343816309,0.02913248,84074.0,84073.0,0.23518786]
[1731343816515,0.0017,84077.0,84076.0,0.01528786]
[1731343816735,0.0017,84077.0,84076.0,0.74101735]
[1731343816937,0.0017,84077.0,84076.0,0.74601735]
[1731343817158,0.0017,84077.0,84076.0,1.04301735]
[1731343817389,0.0017,84077.0,84076.0,0.62622861]
[1731343817586,0.0017,84077.0,84076.0,1.04301735]
[1731343817834,0.11994075,84086.0,84076.0,0.0375]
[1731343818025,0.11994075,84086.0,84073.0,0.04402167]
[1731343818026,0.00177714,84085.0,84084.0,0.00028786]
[1731343818348,0.00177714,84085.0,84078.0,0.00028786]
[1731343818572,0.00177714,84085.0,84079.0,0.00028786]
[1731343818790,0.11994075,84086.0,84079.0,0.00028786]
[1731343818791,0.11994075,84086.0,84081.0,0.005]
[1731343818955,0.0017,84087.0,84086.0,0.00528786]
[1731343822431,0.0017,84087.0,84086.0,0.005]
[1731343822824,0.0017,84087.0,84086.0,0.00528786]
[1731343823030,0.0017,84087.0,84086.0,0.04067604]
[1731343823476,0.1784238,84115.0,84111.0,0.00028786]
[1731343823694,0.1784238,84115.0,84114.0,0.00528786]
[1731343823903,0.11994075,84115.0,84109.0,0.00028786]
[1731343824121,0.11994075,84113.0,84105.0,0.1]
[1731343824328,0.00177714,84112.0,84105.0,0.1]
[1731343824542,0.002,84110.0,84101.0,0.00028786]
[1731343824769,0.12171789,84109.0,84099.0,0.1]
[1731343825013,0.023,84107.0,84099.0,0.1]
[1731343825271,0.12171789,84106.0,84101.0,0.00028786]
[1731343825477,0.12171789,84106.0,84102.0,0.00028786]
[1731343825886,0.12171789,84106.0,84101.0,0.1]
[1731343826506,0.14294075,84105.0,84101.0,0.1]
[1731343826707,0.023,84103.0,84090.0,0.1784238]
[1731343826859,0.11994075,84099.0,84090.0,0.1784238]
[1731343827066,0.02477714,84098.0,84090.0,0.1784238]
[1731343827301,0.023,84096.0,84090.0,0.1784238]
[1731343827536,0.12171789,84095.0,84090.0,0.1784238]
[1731343827661,0.12171789,84095.0,84081.0,0.22652929]
[1731343827864,0.12171789,84095.0,84085.0,0.00028786]
[1731343828070,0.00177714,84111.0,84098.0,0.00028786]
[1731343828274,0.1801198,84106.0,84098.0,0.00028786]
[1731343828468,0.1801198,84106.0,84102.0,0.00028786]
[1731343828469,0.12171789,84105.0,84102.0,0.00028786]
[1731343828721,0.00177714,84104.0,84102.0,0.00028786]
[1731343828943,0.11994075,84103.0,84102.0,0.00028786]
[1731343829098,0.11994075,84103.0,84099.0,0.005]
[1731343829648,0.11994075,84103.0,84102.0,0.00028786]
[1731343829970,0.1272,84102.0,84093.0,0.1]
[1731343830205,0.1272,84102.0,84078.0,0.1784238]
[1731343830206,0.023,84082.0,84078.0,0.1784238]
[1731343830367,0.023,84080.0,84078.0,0.1784238]
[1731343830800,0.025,84081.0,84064.0,0.00028786]
[1731343830948,0.023,84082.0,84073.0,0.1784238]
[1731343831333,0.11994075,84078.0,84073.0,0.1784238]
[1731343831537,0.00177714,84077.0,84074.0,0.00028786]
[1731343831736,0.11994075,84076.0,84074.0,0.00028786]
[1731343832062,0.00177714,84075.0,84074.0,0.00028786]
[1731343832392,0.12171789,84075.0,84074.0,0.00028786]
[1731343832749,0.12171789,84075.0,84074.0,0.00485221]
[1731343832979,0.00177714,84075.0,84074.0,0.00528786]
[1731343833147,0.1784238,84099.0,84098.0,0.1]
[1731343833370,0.29836455,84099.0,84098.0,0.1]
[1731343833558,0.30036455,84099.0,84098.0,0.1]
[1731343833785,0.11994075,84099.0,84098.0,0.1]
[1731343834215,0.002,84088.0,84077.0,0.1]
[1731343834386,0.0813,84089.0,84087.0,0.1784238]
[1731343834624,0.0813,84089.0,84078.0,0.00457912]
[1731343834625,0.00177714,84088.0,84078.0,0.00457912]
[1731343834765,0.00177714,84088.0,84076.0,0.1784238]
[1731343834766,0.023,84087.0,84076.0,0.1784238]
[1731343834970,0.023,84085.0,84076.0,0.1784238]
[1731343835199,0.00177714,84084.0,84076.0,0.1784238]
[1731343835404,0.00177714,84084.0,84072.0,0.005848]
[1731343835405,0.11994075,84083.0,84077.0,0.00028786]
[1731343835611,0.00177714,84082.0,84077.0,0.00028786]
[1731343835818,0.11994075,84081.0,84077.0,0.00028786]
[1731343836059,0.00177714,84080.0,84077.0,0.00028786]
[1731343836264,0.11726719,84079.0,84077.0,0.00028786]
[1731343836631,0.11726719,84079.0,84078.0,0.00028786]
[1731343836874,0.023,84078.0,84072.0,0.000848]
[1731343837094,0.1784238,84088.0,84072.0,0.000848]
[1731343837095,0.11994075,84073.0,84072.0,0.000848]
[1731343837295,0.14294075,84073.0,84072.0,0.000848]
[1731343838347,0.14025756,84073.0,84072.0,0.000848]
[1731343840454,0.1420347,84073.0,84072.0,0.000848]
[1731343840864,0.1440347,84073.0,84072.0,0.000848]
[1731343841823,0.1420347,84073.0,84072.0,0.000848]